fUST/lending_fUST_20250628
["ID","MTS","AMOUNT","RATE_DAILY","PERIOD"]
[368302264,1751103045929,-1226.43,0.00020821,2]
[368302265,1751103045939,-460.0,0.00020821,2]
[368302266,1751103045948,-460.0,0.00020821,2]
[368302267,1751103045957,-460.0,0.00020821,2]
[368302268,1751103045967,-2755.62,0.00020821,2]
[368302269,1751103045977,-1526.94,0.00020821,2]
[368302271,1751103045986,-460.0,0.00020821,2]
[368302272,1751103045996,-1147.67,0.00020821,2]
[368302273,1751103046005,-460.0,0.00020821,2]
[368302274,1751103046014,-460.0,0.00020821,2]
[368302275,1751103046024,-1305.24,0.00020821,2]
[368302276,1751103046034,-1126.91,0.00020821,2]
[368302277,1751103046043,-781.08,0.00020821,2]
[368302278,1751103046053,-3744.68,0.00020821,2]
[368302279,1751103046062,-460.0,0.00020821,2]
[368302280,1751103046071,-735.21,0.00020821,2]
[368302281,1751103046081,-1500.0,0.00020832,2]
[368302282,1751103046090,-1500.0,0.00020856,2]
[368302283,1751103046100,-334.14886311,0.00020857,2]
[368302285,1751103046109,-1500.0,0.00020896,2]
[368302286,1751103046118,-7839.96488608,0.00020934,4]
[368302287,1751103046128,-500.0,0.00020958,15]
[368302288,1751103046137,-368.96050447,0.00020996,2]
[368302289,1751103046146,-269.1667008,0.00021,2]
[368302290,1751103046156,-5209.47194379,0.00021,2]
[368302291,1751103046165,-201.33996909,0.00021,2]
[368302292,1751103046174,-460.0,0.00021095,2]
[368302293,1751103046183,-460.0,0.00021095,2]
[368302294,1751103046192,-460.0,0.00021095,2]
[368302295,1751103046202,-460.0,0.00021095,2]
[368302296,1751103046211,-657.06,0.00021095,2]
[368302297,1751103046221,-460.0,0.00021095,2]
[368302298,1751103046230,-460.0,0.00021095,2]
[368302299,1751103046241,-887.07,0.00021095,2]
[368302300,1751103046251,-460.0,0.00021095,2]
[368302301,1751103046261,-460.0,0.00021095,2]
[368302302,1751103046271,-1946.55,0.00021095,2]
[368302303,1751103046280,-1074.55,0.00021095,2]
[368302304,1751103046289,-487.55,0.00021095,2]
[368302305,1751103046299,-515.69,0.00021095,2]
[368302306,1751103046308,-479.22,0.00021095,2]
[368302307,1751103046317,-570.58,0.00021095,2]
[368302308,1751103046326,-1279.61,0.00021095,2]
[368302309,1751103046335,-460.0,0.00021095,2]
[368302310,1751103046344,-752.69,0.00021095,2]
[368302311,1751103046353,-460.0,0.00021095,2]
[368302312,1751103046362,-1963.7,0.00021095,2]
[368302313,1751103046371,-460.0,0.00021095,2]
[368302314,1751103046380,-460.0,0.00021095,2]
[368302315,1751103046389,-2122.16,0.00021095,2]
[368302316,1751103046398,-460.0,0.00021095,2]
[368302317,1751103046407,-460.0,0.00021095,2]
[368302318,1751103046416,-790.9,0.00021095,2]
[368302319,1751103046425,-2408.36,0.00021095,2]
[368302320,1751103046435,-580.0,0.00021095,2]
[368302321,1751103046444,-1799.67,0.00021095,2]
[368302322,1751103046453,-460.0,0.00021095,2]
[368302324,1751103046462,-460.0,0.00021095,2]
[368302325,1751103046471,-237.8623269,0.00021095,2]
[368302326,1751103046480,-460.0,0.00021095,2]
[368302327,1751103046490,-460.0,0.00021095,2]
[368302328,1751103046499,-1694.8,0.00021095,2]
[368302329,1751103046509,-460.0,0.00021095,2]
[368302331,1751103046518,-460.0,0.00021095,2]
[368302332,1751103046527,-460.0,0.00021095,2]
[368302333,1751103046536,-460.0,0.00021095,2]
[368302334,1751103046545,-334.15595049,0.00021095,2]
[368302335,1751103046554,-1226.43,0.00021095,2]
[368302336,1751103046563,-460.0,0.00021095,2]
[368302337,1751103046572,-460.0,0.00021095,2]
[368302338,1751103046582,-460.0,0.00021095,2]
[368302339,1751103046591,-2755.62,0.00021095,2]
[368302340,1751103046600,-1526.94,0.00021095,2]
[368302341,1751103046610,-460.0,0.00021095,2]
[368302342,1751103046619,-1147.67,0.00021095,2]
[368302344,1751103046628,-460.0,0.00021095,2]
[368302346,1751103046637,-460.0,0.00021095,2]
[368302348,1751103046647,-1305.24,0.00021095,2]
[368302350,1751103046656,-1126.91,0.00021095,2]
[368302352,1751103046666,-781.08,0.00021095,2]
[368302354,1751103046675,-3744.68,0.00021095,2]
[368302355,1751103046684,-460.0,0.00021095,2]
[368302356,1751103046693,-735.21,0.00021095,2]
[368302357,1751103046702,-151.0,0.00021099,4]
[368302358,1751103046713,-25000.0,0.0002113,2]
[368302359,1751103046724,-5000.0,0.0002113,2]
[368302360,1751103046733,-1500.0,0.00021139,2]
[368302361,1751103046743,-7839.96488608,0.00021141,4]
[368302362,1751103046753,-185.38818488,0.0002116,2]
[368302363,1751103046762,-177.5104021,0.00021178,2]
[368302364,1751103046772,-159.266168,0.00021178,2]
[368302365,1751103046781,-159.266168,0.00021178,2]
[368302366,1751103046791,-171.9749283,0.00021178,2]
[368302367,1751103046801,-159.266168,0.00021178,2]
[368302368,1751103046811,-159.266168,0.00021178,2]
[368302369,1751103046821,-302.818272,0.00021178,2]
[368302370,1751103046830,-159.266168,0.00021178,2]
[368302371,1751103046840,-177.5104021,0.00021178,2]
[368302372,1751103046849,-307.3890461,0.00021178,2]
[368302373,1751103046859,-575.2177202,0.00021178,2]
[368302374,1751103046868,-177.5104021,0.00021178,2]
[368302375,1751103046878,-159.266168,0.00021178,2]
[368302376,1751103046887,-159.266168,0.00021178,2]
[368302377,1751103046897,-177.5104021,0.00021178,2]
[368302378,1751103046907,-159.266168,0.00021178,2]
[368302379,1751103046916,-159.266168,0.00021178,2]
[368302380,1751103046926,-159.266168,0.00021178,2]
[368302381,1751103046935,-465.0,0.00021213,2]
[368302382,1751103046945,-177.41445,0.00021266,5]
[368302383,1751103046955,-465.0,0.00021319,2]
[368302384,1751103046964,-151.0,0.00021329,4]
[368302385,1751103046975,-7839.96488608,0.00021348,5]
[368302386,1751103046984,-460.0,0.00021369,2]
[368302387,1751103046994,-500.0,0.00021369,16]
[368302388,1751103047003,-306.82598111,0.00021369,2]
[368302389,1751103047013,-460.0,0.00021369,2]
[368302390,1751103047022,-460.0,0.00021369,2]
[368302391,1751103047031,-657.06,0.00021369,2]
[368302392,1751103047041,-460.0,0.00021369,2]
[368302393,1751103047050,-460.0,0.00021369,2]
[368302394,1751103047059,-887.07,0.00021369,2]
[368302395,1751103047068,-460.0,0.00021369,2]
[368302396,1751103047187,-460.0,0.00021369,2]
[368302397,1751103047197,-1946.55,0.00021369,2]
[368302398,1751103047206,-1074.55,0.00021369,2]
[368302399,1751103047216,-487.55,0.00021369,2]
[368302400,1751103047225,-515.69,0.00021369,2]
[368302401,1751103047235,-479.22,0.00021369,2]
[368302402,1751103047246,-570.58,0.00021369,2]
[368302403,1751103047255,-1279.61,0.00021369,2]
[368302404,1751103047265,-460.0,0.00021369,2]
[368302405,1751103047274,-752.69,0.00021369,2]
[368302406,1751103047285,-460.0,0.00021369,2]
[368302407,1751103047294,-1963.7,0.00021369,2]
[368302408,1751103047303,-460.0,0.00021369,2]
[368302409,1751103047312,-460.0,0.00021369,2]
[368302410,1751103047322,-2122.16,0.00021369,2]
[368302411,1751103047332,-460.0,0.00021369,2]
[368302412,1751103047341,-460.0,0.00021369,2]
[368302413,1751103047350,-790.9,0.00021369,2]
[368302414,1751103047359,-2408.36,0.00021369,2]
[368302415,1751103047369,-580.0,0.00021369,2]
[368302416,1751103047378,-1799.67,0.00021369,2]
[368302417,1751103047388,-460.0,0.00021369,2]
[368302418,1751103047397,-460.0,0.00021369,2]
[368302419,1751103047406,-460.0,0.00021369,2]
[368302420,1751103047415,-460.0,0.00021369,2]
[368302421,1751103047425,-1694.8,0.00021369,2]
[368302422,1751103047434,-460.0,0.00021369,2]
[368302423,1751103047443,-460.0,0.00021369,2]
[368302424,1751103047453,-460.0,0.00021369,2]
[368302425,1751103047463,-460.0,0.00021369,2]
[368302426,1751103047472,-1226.43,0.00021369,2]
[368302427,1751103047482,-460.0,0.00021369,2]
[368302428,1751103047491,-460.0,0.00021369,2]
[368302429,1751103047501,-460.0,0.00021369,2]
[368302430,1751103047510,-2755.62,0.00021369,2]
[368302431,1751103047519,-1526.94,0.00021369,2]
[368302432,1751103047529,-460.0,0.00021369,2]
[368302433,1751103047538,-1147.67,0.00021369,2]
[368302434,1751103047547,-460.0,0.00021369,2]
[368302435,1751103047557,-460.0,0.00021369,2]
[368302436,1751103047566,-1305.24,0.00021369,2]
[368302437,1751103047576,-1126.91,0.00021369,2]
[368302438,1751103047585,-781.08,0.00021369,2]
[368302439,1751103047595,-3744.68,0.00021369,2]
[368302440,1751103047604,-460.0,0.00021369,2]
[368302441,1751103047614,-735.21,0.00021369,2]
[368302442,1751103047624,-1504.88847929,0.0002138,2]
[368302443,1751103047634,-1000.0,0.00021404,2]
[368302444,1751103047643,-164.90033497,0.00021419,2]
[368302445,1751103047653,-2000.0,0.00021444,2]
[368302446,1751103047663,-173.7493084,0.00021534,2]
[368302447,1751103047672,-7839.96488608,0.00021555,5]
[368302448,1751103047682,-151.0,0.00021559,5]
[368302449,1751103047691,-538.906069,0.0002156,4]
[368302450,1751103047702,-160.0,0.00021581,2]
[368302451,1751103047710,-160.0,0.00021581,2]
[368302452,1751103047720,-500.0,0.00021619,2]
[368302453,1751103047729,-500.0,0.00021619,2]
[368302454,1751103047738,-160.0,0.00021619,2]
[368302455,1751103047747,-160.0,0.00021619,2]
[368302456,1751103047757,-160.0,0.00021619,2]
[368302457,1751103047766,-160.0,0.00021619,2]
[368302458,1751103047775,-160.0,0.00021619,2]
[368302459,1751103047785,-60109.47098142,0.00021642,2]
[368302460,1751103047902,-500.36,0.00019452,2]
[368302461,1751103047911,-500.36,0.00019726,2]
[368302462,1751103047921,-420.4604627,0.0002,2]
[368302463,1751103048518,-460.0,0.00019178,2]
[368302464,1751103048532,-460.0,0.00019178,2]
[368302465,1751103048543,-460.0,0.00019178,2]
[368302466,1751103048556,-460.0,0.00019452,2]
[368302467,1751103048566,-460.0,0.00019452,2]
[368302468,1751103048576,-460.0,0.00019452,2]
[368302469,1751103048588,-460.0,0.00019726,2]
[368302470,1751103048599,-217.56,0.00019726,2]
[368302471,1751103048611,-79.8995373,0.0002,2]
[368302472,1751103048624,-212.58,0.0002,2]
[368302473,1751103048635,-500.36,0.00020273,2]
[368302474,1751103048648,-847.18566335,0.00020521,3]
[368302475,1751103048661,-2137.25,0.00020547,2]
[368302476,1751103048673,-500.36,0.00020547,2]
[368302477,1751103048686,-2137.25,0.00020821,2]
[368302478,1751103048699,-500.36,0.00020821,2]
[368302479,1751103048712,-500.36,0.00021095,2]
[368302480,1751103048724,-2137.25,0.00021095,2]
[368302481,1751103048735,-500.36,0.00021369,2]
[368302482,1751103048746,-2137.25,0.00021369,2]
[368302483,1751103048756,-479831.10224103,0.00021642,2]
[368302484,1751103048771,-16561.93168755,0.00021642,2]
[368302485,1751103048784,-6536.41465416,0.00021643,2]
[368302489,1751103725858,285.076321,0.00013699,2]
[368302490,1751104044133,-636.84842321,0.00018508,2]
[368302491,1751104052102,-38.32489856,0.00018508,2]
[368302492,1751104052124,-1200.0,0.00018517,2]
[368302493,1751104052146,-300.0,0.00018517,2]
[368302494,1751104052168,-300.0,0.00018517,2]
[368302495,1751104052190,-3698.87133669,0.00018518,2]
[368302502,1751104215684,168.0,0.00024657,120]
[368302518,1751104232760,-300.0,0.00018517,2]
[368302520,1751104232770,-695.0,0.00018517,2]
[368302522,1751104232779,-14427.47869075,0.00018518,2]
[368302527,1751104232813,-2818.28446965,0.00018518,2]
[368302529,1751104232825,-3544.96381458,0.00018518,2]
[368302531,1751104232836,-410.40168833,0.00018518,2]
[368302533,1751104232845,-167.34796909,0.00019177,2]
[368302536,1751104232857,-1.95199337,0.00019177,2]
[368302537,1751104232866,-164.41002326,0.00019177,2]
[368302539,1751104232875,-461.03819424,0.00019178,2]
[368302540,1751104232884,-460.0,0.00019178,2]
[368302541,1751104232893,-28.11749088,0.00019178,2]
[368302543,1751104232904,-431.88250912,0.00019178,2]
[368302545,1751104232914,-463.27170372,0.00019178,2]
[368302546,1751104232923,-460.0,0.00019178,2]
[368302547,1751104232933,-599.14772544,0.00019178,2]
[368302548,1751104232942,-460.0,0.00019178,2]
[368302549,1751104232951,-400.0,0.00019178,2]
[368302550,1751104232961,-174.30727037,0.00019178,2]
[368302551,1751104232970,-460.0,0.00019178,2]
[368302552,1751104232979,-457.19975144,0.00019178,2]
[368302553,1751104232989,-442.26966708,0.00019178,2]
[368302555,1751104232998,-460.0,0.00019178,2]
[368302558,1751104233009,-460.0,0.00019178,2]
[368302559,1751104233018,-85.2848779,0.00019178,2]
[368302561,1751104233030,-374.7151221,0.00019178,2]
[368302564,1751104233040,-460.98915577,0.00019178,2]
[368302565,1751104233050,-460.0,0.00019178,2]
[368302567,1751104233059,-460.42143672,0.00019178,2]
[368302569,1751104233069,-460.0,0.00019178,2]
[368302571,1751104233078,-460.0,0.00019178,2]
[368302573,1751104233088,-460.90477362,0.00019178,2]
[368302575,1751104233099,-460.0,0.00019178,2]
[368302577,1751104233109,-460.0,0.00019178,2]
[368302579,1751104233119,-460.0,0.00019178,2]
[368302581,1751104233129,-460.0,0.00019178,2]
[368302583,1751104233139,-22.96951179,0.00019178,2]
[368302692,1751104238803,-24900.0,0.00018611,2]
[368302693,1751104238814,-480.41874432,0.000189,2]
[368302694,1751104238823,-410.852316,0.00019178,2]
[368302695,1751104238833,-460.0,0.00019178,2]
[368302696,1751104238842,-460.0,0.00019178,2]
[368302697,1751104238852,-460.0,0.00019178,2]
[368302698,1751104238861,-460.0,0.00019178,2]
[368302699,1751104238871,-460.0,0.00019178,2]
[368302700,1751104238881,-460.0,0.00019178,2]
[368302701,1751104238891,-460.0,0.00019178,2]
[368302702,1751104238900,-450.0,0.00019178,2]
[368302703,1751104238909,-403.23340024,0.00019178,2]
[368302704,1751104238920,-460.0,0.00019178,2]
[368302705,1751104238929,-460.0,0.00019178,2]
[368302706,1751104238939,-361.81491285,0.00019178,2]
[368302707,1751104238948,-460.0,0.00019178,2]
[368302708,1751104238957,-404.0174903,0.00019178,2]
[368302709,1751104238966,-460.0,0.00019178,2]
[368302710,1751104238975,-445.0631408,0.00019178,2]
[368302711,1751104238983,-284.01453412,0.00019178,2]
[368302712,1751104238993,-377.5092418,0.00019178,2]
[368302713,1751104239002,-460.0,0.00019178,2]
[368302714,1751104239011,-465.76174302,0.00019178,2]
[368302715,1751104239021,-460.0,0.00019178,2]
[368302716,1751104239031,-460.0,0.00019178,2]
[368302717,1751104239039,-460.78398717,0.00019178,2]
[368302718,1751104239049,-460.0,0.00019178,2]
[368302719,1751104239058,-460.0,0.00019178,2]
[368302720,1751104239067,-561.29567615,0.00019178,2]
[368302721,1751104239077,-430.0,0.00019178,2]
[368302722,1751104239085,-459.94339744,0.00019178,2]
[368302723,1751104239096,-580.0,0.00019178,2]
[368302724,1751104239107,-460.0,0.00019178,2]
[368302725,1751104239116,-481.66,0.00019178,2]
[368302726,1751104239126,-460.0,0.00019178,2]
[368302727,1751104239135,-314.20416739,0.00019178,2]
[368302728,1751104239144,-460.0,0.00019178,2]
[368302729,1751104239153,-460.0,0.00019178,2]
[368302730,1751104239163,-460.0,0.00019178,2]
[368302731,1751104239172,-460.0,0.00019178,2]
[368302732,1751104239181,-460.0,0.00019178,2]
[368302733,1751104239191,-460.0,0.00019178,2]
[368302734,1751104239201,-644.09,0.00019178,2]
[368302735,1751104239210,-460.0,0.00019178,2]
[368302736,1751104239219,-494.77441597,0.00019178,2]
[368302737,1751104239227,-460.0,0.00019178,2]
[368302738,1751104239235,-460.0,0.00019178,2]
[368302739,1751104239243,-460.0,0.00019178,2]
[368302740,1751104239252,-460.0,0.00019178,2]
[368302741,1751104239261,-460.0,0.00019178,2]
[368302742,1751104239271,-460.0,0.00019178,2]
[368302743,1751104239281,-460.0,0.00019178,2]
[368302744,1751104239291,-460.0,0.00019178,2]
[368302745,1751104239303,-460.0,0.00019178,2]
[368302746,1751104239313,-460.0,0.00019178,2]
[368302747,1751104239324,-490.46,0.00019178,2]
[368302748,1751104239333,-1087.34,0.00019178,2]
[368302749,1751104239342,-460.0,0.00019178,2]
[368302750,1751104239352,-1749.26,0.00019178,2]
[368302751,1751104239361,-460.0,0.00019178,2]
[368302752,1751104239370,-481.46,0.00019178,2]
[368302753,1751104239379,-460.0,0.00019178,2]
[368302754,1751104239389,-460.0,0.00019178,2]
[368302755,1751104239398,-460.0,0.00019178,2]
[368302756,1751104239408,-460.0,0.00019178,2]
[368302757,1751104239417,-853.9,0.00019178,2]
[368302758,1751104239427,-460.0,0.00019178,2]
[368302759,1751104239436,-460.0,0.00019178,2]
[368302760,1751104239447,-460.0,0.00019178,2]
[368302761,1751104239457,-460.0,0.00019178,2]
[368302762,1751104239467,-460.0,0.00019178,2]
[368302763,1751104239477,-460.0,0.00019178,2]
[368302764,1751104239486,-1919.85,0.00019178,2]
[368302765,1751104239495,-460.0,0.00019178,2]
[368302766,1751104239504,-460.0,0.00019178,2]
[368302767,1751104239514,-460.0,0.00019178,2]
[368302768,1751104239523,-460.0,0.00019178,2]
[368302769,1751104239532,-460.0,0.00019178,2]
[368302770,1751104239541,-460.0,0.00019178,2]
[368302771,1751104239550,-516.71,0.00019178,2]
[368302772,1751104239560,-2052.3,0.00019178,2]
[368302773,1751104239569,-460.0,0.00019178,2]
[368302774,1751104239578,-551.56,0.00019178,2]
[368302775,1751104239588,-460.0,0.00019178,2]
[368302776,1751104239597,-460.6594643,0.00019178,2]
[368302777,1751104239607,-580.0,0.00019178,2]
[368302778,1751104239616,-1731.5,0.00019178,2]
[368302779,1751104239625,-460.0,0.00019178,2]
[368302780,1751104239634,-460.0,0.00019178,2]
[368302781,1751104239643,-460.0,0.00019178,2]
[368302782,1751104239652,-241.91598921,0.00019178,2]
[368302783,1751104239662,-460.0,0.00019178,2]
[368302784,1751104239671,-460.0,0.00019178,2]
[368302785,1751104239680,-460.0,0.00019178,2]
[368302786,1751104239690,-371.75323977,0.00019178,2]
[368302787,1751104239699,-460.0,0.00019178,2]
[368302788,1751104239709,-460.0,0.00019178,2]
[368302789,1751104239718,-460.0,0.00019178,2]
[368302790,1751104239729,-2205.55,0.00019178,2]
[368302791,1751104239739,-460.0,0.00019178,2]
[368302792,1751104239749,-460.0,0.00019178,2]
[368302793,1751104239758,-817.34,0.00019178,2]
[368302794,1751104239767,-2719.66,0.00019178,2]
[368302795,1751104239776,-460.0,0.00019178,2]
[368302796,1751104239786,-460.0,0.00019178,2]
[368302797,1751104239795,-460.0,0.00019178,2]
[368302798,1751104239805,-474.0,0.00019178,2]
[368302799,1751104239816,-460.0,0.00019178,2]
[368302800,1751104239826,-460.0,0.00019178,2]
[368302801,1751104239836,-1742.15,0.00019178,2]
[368302802,1751104239846,-460.0,0.00019178,2]
[368302803,1751104239857,-460.0,0.00019178,2]
[368302804,1751104239867,-1538.5,0.00019178,2]
[368302805,1751104239879,-460.0,0.00019178,2]
[368302806,1751104239888,-460.0,0.00019178,2]
[368302807,1751104239902,-460.0,0.00019178,2]
[368302808,1751104239915,-3171.69,0.00019178,2]
[368302809,1751104239928,-585.67973166,0.00019178,2]
[368302810,1751104239940,-460.0,0.00019178,2]
[368302811,1751104239953,-460.0,0.00019178,2]
[368302812,1751104239964,-1284.62,0.00019178,2]
[368302813,1751104239974,-460.0,0.00019178,2]
[368302814,1751104239985,-460.0,0.00019178,2]
[368302815,1751104239997,-460.0,0.00019178,2]
[368302816,1751104240008,-841.85,0.00019178,2]
[368302817,1751104240020,-460.0,0.00019178,2]
[368302818,1751104240032,-460.0,0.00019178,2]
[368302819,1751104240044,-3929.08,0.00019178,2]
[368302820,1751104240056,-460.0,0.00019178,2]
[368302821,1751104240068,-859.76,0.00019178,2]
[368302822,1751104240080,-460.0,0.00019178,2]
[368302823,1751104240092,-1249.38,0.00019178,2]
[368302824,1751104240108,-460.0,0.00019178,2]
[368302825,1751104240120,-1398.58,0.00019178,2]
[368302826,1751104240132,-460.0,0.00019178,2]
[368302827,1751104240144,-460.0,0.00019178,2]
[368302828,1751104240155,-1240.77,0.00019178,2]
[368302829,1751104240167,-460.0,0.00019178,2]
[368302830,1751104240180,-1289.3,0.00019178,2]
[368302831,1751104240191,-460.0,0.00019178,2]
[368302832,1751104240203,-460.0,0.00019178,2]
[368302833,1751104240214,-460.0,0.00019178,2]
[368302834,1751104240227,-767.03,0.00019178,2]
[368302835,1751104240240,-177.892414,0.00019178,2]
[368302836,1751104240251,-22960.02371855,0.00019178,2]
[368302837,1751104240263,-460.0,0.00019451,2]
[368302838,1751104240273,-301.75254995,0.00019451,2]
[368302839,1751104240283,-727.6,0.00019451,2]
[368302840,1751104240294,-589.67,0.00019451,2]
[368302841,1751104240305,-460.0,0.00019451,2]
[368302842,1751104240317,-460.0,0.00019451,2]
[368302843,1751104240328,-460.0,0.00019452,2]
[368302844,1751104240340,-460.0,0.00019452,2]
[368302845,1751104240351,-460.0,0.00019452,2]
[368302846,1751104240363,-460.0,0.00019452,2]
[368302847,1751104240374,-299.84949085,0.00019452,2]
[368302848,1751104240386,-460.0,0.00019452,2]
[368302849,1751104240397,-460.0,0.00019452,2]
[368302851,1751104240409,-460.0,0.00019452,2]
[368302852,1751104240422,-460.0,0.00019452,2]
[368302853,1751104240435,-460.0,0.00019452,2]
[368302854,1751104240447,-460.0,0.00019452,2]
[368302855,1751104240460,-460.0,0.00019452,2]
[368302856,1751104240470,-644.09,0.00019452,2]
[368302857,1751104240481,-460.0,0.00019452,2]
[368302858,1751104240492,-460.0,0.00019452,2]
[368302859,1751104240505,-460.0,0.00019452,2]
[368302860,1751104240515,-460.0,0.00019452,2]
[368302861,1751104240526,-460.0,0.00019452,2]
[368302862,1751104240538,-460.0,0.00019452,2]
[368302863,1751104240552,-490.46,0.00019452,2]
[368302864,1751104240564,-1087.34,0.00019452,2]
[368302866,1751104240576,-1749.26,0.00019452,2]
[368302868,1751104240587,-481.46,0.00019452,2]
[368302870,1751104240598,-460.0,0.00019452,2]
[368302872,1751104240608,-460.0,0.00019452,2]
[368302874,1751104240619,-460.0,0.00019452,2]
[368302876,1751104240629,-853.9,0.00019452,2]
[368302877,1751104240640,-460.0,0.00019452,2]
[368302878,1751104240653,-460.0,0.00019452,2]
[368302879,1751104240663,-460.0,0.00019452,2]
[368302880,1751104240674,-460.0,0.00019452,2]
[368302881,1751104240684,-460.0,0.00019452,2]
[368302882,1751104240695,-1919.85,0.00019452,2]
[368302883,1751104240705,-460.0,0.00019452,2]
[368302884,1751104240715,-460.0,0.00019452,2]
[368302885,1751104240726,-516.71,0.00019452,2]
[368302886,1751104240737,-2052.3,0.00019452,2]
[368302887,1751104240748,-460.0,0.00019452,2]
[368302888,1751104240760,-551.56,0.00019452,2]
[368302889,1751104240770,-460.0,0.00019452,2]
[368302890,1751104240781,-1731.5,0.00019452,2]
[368302891,1751104240792,-460.0,0.00019452,2]
[368302892,1751104240802,-460.0,0.00019452,2]
[368302893,1751104240813,-460.0,0.00019452,2]
[368302894,1751104240824,-460.0,0.00019452,2]
[368302895,1751104240835,-460.0,0.00019452,2]
[368302896,1751104240846,-460.0,0.00019452,2]
[368302897,1751104240856,-460.0,0.00019452,2]
[368302898,1751104240867,-460.0,0.00019452,2]
[368302899,1751104240877,-2205.55,0.00019452,2]
[368302900,1751104240888,-460.0,0.00019452,2]
[368302901,1751104240899,-460.0,0.00019452,2]
[368302902,1751104240911,-817.34,0.00019452,2]
[368302904,1751104240921,-2719.66,0.00019452,2]
[368302905,1751104240932,-460.0,0.00019452,2]
[368302906,1751104240943,-460.0,0.00019452,2]
[368302907,1751104240954,-474.0,0.00019452,2]
[368302908,1751104240964,-460.0,0.00019452,2]
[368302909,1751104240975,-292.70064043,0.00019452,2]
[368302910,1751104240986,-1742.15,0.00019452,2]
[368302911,1751104240997,-460.0,0.00019452,2]
[368302912,1751104241008,-1538.5,0.00019452,2]
[368302913,1751104241018,-460.0,0.00019452,2]
[368302914,1751104241028,-460.0,0.00019452,2]
[368302915,1751104241038,-460.0,0.00019452,2]
[368302917,1751104241049,-3171.69,0.00019452,2]
[368302918,1751104241060,-547.7951719,0.00019452,2]
[368302919,1751104241070,-1284.62,0.00019452,2]
[368302920,1751104241082,-460.0,0.00019452,2]
[368302921,1751104241092,-460.0,0.00019452,2]
[368302922,1751104241106,-460.0,0.00019452,2]
[368302923,1751104241116,-841.85,0.00019452,2]
[368302924,1751104241127,-460.0,0.00019452,2]
[368302925,1751104241138,-291.21418704,0.00019452,2]
[368302927,1751104241149,-3929.08,0.00019452,2]
[368302928,1751104241159,-460.0,0.00019452,2]
[368302929,1751104241171,-859.76,0.00019452,2]
[368302930,1751104241181,-460.0,0.00019452,2]
[368302931,1751104241192,-1249.38,0.00019452,2]
[368302933,1751104241202,-460.0,0.00019452,2]
[368302935,1751104241214,-1398.58,0.00019452,2]
[368302936,1751104241224,-460.0,0.00019452,2]
[368302937,1751104241235,-1240.77,0.00019452,2]
[368302938,1751104241247,-460.0,0.00019452,2]
[368302939,1751104241258,-1289.3,0.00019452,2]
[368302940,1751104241269,-460.0,0.00019452,2]
[368302941,1751104241279,-460.0,0.00019452,2]
[368302942,1751104241289,-767.03,0.00019452,2]
[368302943,1751104241300,-160.0,0.00019725,2]
[368302944,1751104241310,-727.6,0.00019725,2]
[368302945,1751104241321,-589.67,0.00019725,2]
[368302946,1751104241331,-460.0,0.00019725,2]